fUST/lending_fUST_20250713
["ID","MTS","AMOUNT","RATE_DAILY","PERIOD"]
[371710541,1752397844860,-463.296657,0.00020187,2]
[371710543,1752397844870,-482.54,0.00020273,2]
[371710545,1752397844879,-639.71,0.00020273,2]
[371710547,1752397844889,-460.0,0.00020273,2]
[371710549,1752397844899,-498.29,0.00020273,2]
[371710551,1752397844909,-1577.35,0.00020273,2]
[371710554,1752397844919,-460.0,0.00020273,2]
[371710555,1752397844928,-541.17,0.00020273,2]
[371710558,1752397844938,-570.09,0.00020273,2]
[371710560,1752397844948,-751.0,0.00020273,2]
[371710562,1752397844957,-1365.09,0.00020273,2]
[371710564,1752397844967,-473.41,0.00020273,2]
[371710566,1752397844977,-1020.42,0.00020273,2]
[371710568,1752397844987,-706.36,0.00020273,2]
[371710570,1752397844996,-460.0,0.00020273,2]
[371710572,1752397845006,-942.54,0.00020273,2]
[371710574,1752397845016,-3908.30138619,0.00020314,3]
[371710576,1752397845025,-11017.15526036,0.00020418,2]
[371710578,1752397845035,-836.956561,0.00020461,2]
[371710580,1752397845044,-160.0,0.00020471,5]
[371710582,1752397845054,-280.0,0.00020478,2]
[371710584,1752397845063,-168.0,0.00020482,2]
[371710586,1752397845073,-3757.86,0.000205,2]
[371710588,1752397845082,-1000.0,0.000205,2]
[371710590,1752397845091,-280.0,0.00020501,2]
[371710593,1752397845110,-168.0,0.00020516,2]
[371710595,1752397845121,-1300.0,0.00020516,2]
[371710597,1752397845130,-482.54,0.00020547,2]
[371710599,1752397845139,-639.71,0.00020547,2]
[371710601,1752397845149,-460.0,0.00020547,2]
[371710603,1752397845159,-498.29,0.00020547,2]
[371710605,1752397845169,-1577.35,0.00020547,2]
[371710606,1752397845178,-460.0,0.00020547,2]
[371710609,1752397845188,-570.09,0.00020547,2]
[371710611,1752397845198,-751.0,0.00020547,2]
[371710613,1752397845207,-1365.09,0.00020547,2]
[371710615,1752397845217,-473.41,0.00020547,2]
[371710617,1752397845227,-1020.42,0.00020547,2]
[371710619,1752397845236,-706.36,0.00020547,2]
[371710621,1752397845246,-460.0,0.00020547,2]
[371710623,1752397845255,-942.54,0.00020547,2]
[371710625,1752397845265,-168.0,0.00020563,2]
[371710627,1752397845274,-168.0,0.00020565,2]
[371710629,1752397845283,-223.95,0.0002057,2]
[371710631,1752397845293,-192.7,0.0002061,4]
[371710633,1752397845302,-3908.30138619,0.00020624,3]
[371710635,1752397845311,-2000.0,0.00020627,2]
[371710636,1752397845320,-476.653,0.00020668,2]
[371710639,1752397845330,-229.07,0.00020695,2]
[371710640,1752397845339,-12598.31844336,0.000207,3]
[371710642,1752397845349,-160.0,0.000207,3]
[371710645,1752397845358,-836.956561,0.000207,3]
[371710646,1752397845368,-214.29528141,0.000207,3]
[371710649,1752397845377,-215.0738,0.00020762,2]
[371710650,1752397845387,-1414.67123175,0.00020821,2]
[371710652,1752397845396,-482.54,0.00020821,2]
[371710654,1752397845406,-639.71,0.00020821,2]
[371710657,1752397845416,-460.0,0.00020821,2]
[371710661,1752397845425,-498.29,0.00020821,2]
[371710663,1752397845435,-1577.35,0.00020821,2]
[371710664,1752397845443,-460.0,0.00020821,2]
[371710666,1752397845453,-570.09,0.00020821,2]
[371710668,1752397845462,-751.0,0.00020821,2]
[371710670,1752397845471,-1365.09,0.00020821,2]
[371710673,1752397845487,-473.41,0.00020821,2]
[371710674,1752397845496,-1020.42,0.00020821,2]
[371710675,1752397845506,-706.36,0.00020821,2]
[371710676,1752397845517,-460.0,0.00020821,2]
[371710677,1752397845527,-942.54,0.00020821,2]
[371710678,1752397845536,-160.0,0.00020923,6]
[371710679,1752397845545,-3908.30138619,0.00020934,4]
[371710680,1752397845556,-1000.0,0.00021,2]
[371710681,1752397845565,-192.7,0.00021087,4]
[371710682,1752397845574,-482.54,0.00021095,2]
[371710683,1752397845583,-639.71,0.00021095,2]
[371710684,1752397845593,-460.0,0.00021095,2]
[371710685,1752397845602,-498.29,0.00021095,2]
[371710686,1752397845611,-1577.35,0.00021095,2]
[371710687,1752397845621,-460.0,0.00021095,2]
[371710688,1752397845631,-570.09,0.00021095,2]
[371710689,1752397845640,-751.0,0.00021095,2]
[371710690,1752397845650,-1365.09,0.00021095,2]
[371710692,1752397845660,-1020.42,0.00021095,2]
[371710693,1752397845674,-473.41,0.00021095,2]
[371710694,1752397845684,-706.36,0.00021095,2]
[371710695,1752397845693,-460.0,0.00021095,2]
[371710696,1752397845703,-942.54,0.00021095,2]
[371710697,1752397845713,-1153.9,0.000211,2]
[371710699,1752397845724,-1011.45775859,0.00021175,2]
[371710700,1752397845733,-154.849508,0.00021218,2]
[371710701,1752397845743,-3908.30138619,0.00021245,4]
[371710702,1752397845752,-24639.08,0.000213,2]
[371710703,1752397845762,-612.0,0.0002133,2]
[371710704,1752397845771,-196.87336587,0.0002135,2]
[371710705,1752397845781,-151.0,0.00021369,2]
[371710707,1752397845790,-482.54,0.00021369,2]
[371710708,1752397845800,-639.71,0.00021369,2]
[371710710,1752397845810,-154.16872922,0.00021369,2]
[371710712,1752397845819,-498.29,0.00021369,2]
[371710714,1752397845829,-1577.35,0.00021369,2]
[371710716,1752397845838,-460.0,0.00021369,2]
[371710718,1752397845848,-570.09,0.00021369,2]
[371710720,1752397845857,-751.0,0.00021369,2]
[371710722,1752397845867,-1365.09,0.00021369,2]
[371710724,1752397845876,-1020.42,0.00021369,2]
[371710725,1752397845887,-473.41,0.00021369,2]
[371710726,1752397845897,-706.36,0.00021369,2]
[371710727,1752397845906,-460.0,0.00021369,2]
[371710728,1752397845916,-942.54,0.00021369,2]
[371710729,1752397845925,-857.7662798,0.0002137,2]
[371710730,1752397845935,-428.9497036,0.0002137,2]
[371710731,1752397845945,-428.5503214,0.0002137,2]
[371710732,1752397845954,-428.5475684,0.0002137,2]
[371710733,1752397845963,-857.4953208,0.0002137,2]
[371710734,1752397845973,-160.0,0.00021376,7]
[371710735,1752397845982,-257.71,0.00021435,2]
[371710736,1752397845992,-152.657689,0.000215,2]
[371710737,1752397846001,-1000.0,0.000215,2]
[371710745,1752397846103,-3908.30138619,0.00021555,5]
[371710746,1752397846114,-192.7,0.00021563,5]
[371710747,1752397846123,-1300.0,0.00021612,2]
[371710748,1752397846132,-511.65076796,0.00021616,2]
[371710750,1752397846142,-151.48433,0.00021643,2]
[371710751,1752397846151,-151.0,0.00021643,2]
[371710752,1752397846161,-482.54,0.00021643,2]
[371710753,1752397846171,-639.71,0.00021643,2]
[371710754,1752397846180,-498.29,0.00021643,2]
[371710755,1752397846189,-1577.35,0.00021643,2]
[371710756,1752397846199,-460.0,0.00021643,2]
[371710757,1752397846208,-570.09,0.00021643,2]
[371710758,1752397846217,-751.0,0.00021643,2]
[371710759,1752397846227,-1365.09,0.00021643,2]
[371710760,1752397846237,-1020.42,0.00021643,2]
[371710761,1752397846246,-473.41,0.00021643,2]
[371710762,1752397846256,-706.36,0.00021643,2]
[371710764,1752397846266,-397.21816038,0.00021643,2]
[371710766,1752397846276,-942.54,0.00021643,2]
[371710768,1752397846285,-151.0,0.000217,4]
[371710769,1752397846294,-511.65076796,0.00021726,2]
[371710770,1752397846304,-180.26679486,0.00021778,2]
[371710771,1752397846313,-3757.86,0.000218,2]
[371710772,1752397846322,-160.0,0.00021828,8]
[371710773,1752397846331,-511.65076796,0.00021836,2]
[371710774,1752397846340,-1000.0,0.00021838,5]
[371710775,1752397846349,-3908.30138619,0.00021866,6]
[371710776,1752397846358,-482.54,0.00021917,2]
[371710777,1752397846367,-639.71,0.00021917,2]
[371710778,1752397846376,-498.29,0.00021917,2]
[371710779,1752397846385,-1577.35,0.00021917,2]
[371710780,1752397846395,-431.20645765,0.00021917,2]
[371710781,1752397846404,-937.82,0.00021917,2]
[371710782,1752397846413,-937.82,0.00021917,2]
[371710783,1752397846422,-937.82,0.00021917,2]
[371710784,1752397846431,-937.82,0.00021917,2]
[371710785,1752397846440,-937.82,0.00021917,2]
[371710786,1752397846449,-937.82,0.00021917,2]
[371710787,1752397846459,-937.82,0.00021917,2]
[371710788,1752397846468,-937.82,0.00021917,2]
[371710789,1752397846481,-937.82,0.00021917,2]
[371710790,1752397846490,-937.82,0.00021917,2]
[371710791,1752397846500,-937.82,0.00021917,2]
[371710792,1752397846510,-937.82,0.00021917,2]
[371710793,1752397846520,-937.82,0.00021917,2]
[371710794,1752397846530,-937.82,0.00021917,2]
[371710795,1752397846539,-937.82,0.00021917,2]
[371710796,1752397846548,-937.82,0.00021917,2]
[371710797,1752397846560,-937.82,0.00021917,2]
[371710798,1752397846570,-937.82,0.00021917,2]
[371710799,1752397846580,-937.82,0.00021917,2]
[371710800,1752397846590,-937.82,0.00021917,2]
[371710801,1752397846599,-937.82,0.00021917,2]
[371710802,1752397846609,-570.09,0.00021917,2]
[371710803,1752397846620,-751.0,0.00021917,2]
[371710804,1752397846630,-1365.09,0.00021917,2]
[371710805,1752397846639,-1020.42,0.00021917,2]
[371710806,1752397846649,-473.41,0.00021917,2]
[371710807,1752397846659,-706.36,0.00021917,2]
[371710808,1752397846668,-942.54,0.00021917,2]
[371710809,1752397846678,-153.0,0.00021918,2]
[371710810,1752397846688,-153.0,0.00021918,2]
[371710811,1752397846697,-153.0,0.00021918,2]
[371710812,1752397846706,-153.0,0.00021918,2]
[371710813,1752397846716,-153.0,0.00021918,2]
[371710814,1752397846725,-153.0,0.00021918,2]
[371710815,1752397846735,-153.0,0.00021918,2]
[371710816,1752397846744,-153.0,0.00021918,2]
[371710817,1752397846754,-153.0,0.00021918,2]
[371710818,1752397846764,-153.0,0.00021918,2]
[371710819,1752397846774,-153.0,0.00021918,2]
[371710820,1752397846783,-153.0,0.00021918,2]
[371710821,1752397846794,-153.0,0.00021918,2]
[371710822,1752397846804,-153.0,0.00021918,2]
[371710823,1752397846813,-153.0,0.00021918,2]
[371710824,1752397846823,-153.0,0.00021918,2]
[371710825,1752397846832,-153.0,0.00021918,2]
[371710826,1752397846842,-153.0,0.00021918,2]
[371710827,1752397846853,-153.0,0.00021918,2]
[371710828,1752397846863,-153.0,0.00021918,2]
[371710829,1752397846873,-153.0,0.00021918,2]
[371710830,1752397846883,-153.0,0.00021918,2]
[371710831,1752397846893,-153.0,0.00021918,2]
[371710832,1752397846902,-153.0,0.00021918,2]
[371710833,1752397846912,-153.0,0.00021918,2]
[371710834,1752397846922,-153.0,0.00021918,2]
[371710835,1752397846931,-153.0,0.00021918,2]
[371710836,1752397846941,-153.0,0.00021918,2]
[371710837,1752397846952,-153.0,0.00021918,2]
[371710838,1752397846962,-153.0,0.00021918,2]
[371710839,1752397846971,-153.0,0.00021918,2]
[371710840,1752397846981,-153.0,0.00021918,2]
[371710841,1752397846991,-153.0,0.00021918,2]
[371710842,1752397847000,-153.0,0.00021918,2]
[371710843,1752397847010,-153.0,0.00021918,2]
[371710844,1752397847019,-153.0,0.00021918,2]
[371710845,1752397847028,-153.0,0.00021918,2]
[371710846,1752397847038,-153.0,0.00021918,2]
[371710847,1752397847048,-153.0,0.00021918,2]
[371710848,1752397847057,-153.0,0.00021918,2]
[371710849,1752397847067,-153.0,0.00021918,2]
[371710850,1752397847077,-153.0,0.00021918,2]
[371710851,1752397847086,-153.0,0.00021918,2]
[371710852,1752397847096,-153.0,0.00021918,2]
[371710853,1752397847105,-153.0,0.00021918,2]
[371710854,1752397847115,-153.0,0.00021918,2]
[371710855,1752397847124,-153.0,0.00021918,2]
[371710856,1752397847141,-153.0,0.00021918,2]
[371710857,1752397847159,-153.0,0.00021918,2]
[371710858,1752397847176,-153.0,0.00021918,2]
[371710859,1752397847187,-153.0,0.00021918,2]
[371710860,1752397847201,-153.0,0.00021918,2]
[371710861,1752397847214,-153.0,0.00021918,2]
[371710862,1752397847227,-153.0,0.00021918,2]
[371710863,1752397847241,-153.0,0.00021918,2]
[371710864,1752397847254,-153.0,0.00021918,2]
[371710865,1752397847268,-153.0,0.00021918,2]
[371710866,1752397847283,-153.0,0.00021918,2]
[371710867,1752397847296,-153.0,0.00021918,2]
[371710868,1752397847309,-153.0,0.00021918,2]
[371710869,1752397847322,-153.0,0.00021918,2]
[371710870,1752397847335,-153.0,0.00021918,2]
[371710871,1752397847349,-153.0,0.00021918,2]
[371710872,1752397847364,-153.0,0.00021918,2]
[371710873,1752397847377,-153.0,0.00021918,2]
[371710874,1752397847388,-153.0,0.00021918,2]
[371710875,1752397847400,-153.0,0.00021918,2]
[371710876,1752397847412,-153.0,0.00021918,2]
[371710877,1752397847426,-153.0,0.00021918,2]
[371710878,1752397847439,-153.0,0.00021918,2]
[371710879,1752397847452,-153.0,0.00021918,2]
[371710880,1752397847464,-153.0,0.00021918,2]
[371710881,1752397847479,-153.0,0.00021918,2]
[371710882,1752397847494,-153.0,0.00021918,2]
[371710883,1752397847508,-153.0,0.00021918,2]
[371710884,1752397847519,-153.0,0.00021918,2]
[371710885,1752397847530,-153.0,0.00021918,2]
[371710886,1752397847541,-153.0,0.00021918,2]
[371710887,1752397847554,-153.0,0.00021918,2]
[371710888,1752397847568,-153.0,0.00021918,2]
[371710889,1752397847582,-153.0,0.00021918,2]
[371710890,1752397847592,-153.0,0.00021918,2]
[371710891,1752397847604,-153.0,0.00021918,2]
[371710892,1752397847616,-153.0,0.00021918,2]
[371710893,1752397847628,-153.0,0.00021918,2]
[371710894,1752397847640,-153.0,0.00021918,2]
[371710895,1752397847650,-153.0,0.00021918,2]
[371710896,1752397847661,-153.0,0.00021918,2]
[371710897,1752397847672,-153.0,0.00021918,2]
[371710898,1752397847683,-153.0,0.00021918,2]
[371710899,1752397847695,-153.0,0.00021918,2]
[371710900,1752397847706,-153.0,0.00021918,2]
[371710901,1752397847718,-153.0,0.00021918,2]
[371710902,1752397847729,-153.0,0.00021918,2]
[371710903,1752397847741,-153.0,0.00021918,2]
[371710904,1752397847752,-153.0,0.00021918,2]
[371710905,1752397847764,-153.0,0.00021918,2]
[371710906,1752397847775,-153.0,0.00021918,2]
[371710907,1752397847787,-153.0,0.00021918,2]
[371710908,1752397847798,-153.0,0.00021918,2]
[371710909,1752397847810,-153.0,0.00021918,2]
[371710910,1752397847821,-153.0,0.00021918,2]
[371710911,1752397847833,-153.0,0.00021918,2]
[371710912,1752397847844,-153.0,0.00021918,2]
[371710913,1752397847856,-153.0,0.00021918,2]
[371710914,1752397847868,-153.0,0.00021918,2]
[371710915,1752397847879,-153.0,0.00021918,2]
[371710916,1752397847890,-153.0,0.00021918,2]
[371710917,1752397847902,-153.0,0.00021918,2]
[371710918,1752397847913,-401.22162457,0.00021918,7]
[371710919,1752397847925,-200.0,0.00021918,2]
[371710920,1752397847937,-576.4023754,0.00021918,2]
[371710921,1752397847949,-177.931191,0.00021918,2]
[371710922,1752397847960,-153.0,0.00021918,2]
[371710923,1752397847971,-159.6475778,0.00021918,2]
[371710924,1752397847983,-177.931191,0.00021918,2]
[371710925,1752397847994,-318.1345751,0.00021918,2]
[371710926,1752397848007,-784.1742561,0.00021918,2]
[371710927,1752397848019,-454.6664248,0.00021918,2]
[371710928,1752397848031,-177.7694277,0.00021918,2]
[371710929,1752397848043,-159.6475778,0.00021918,2]
[371710930,1752397848055,-153.0,0.00021918,2]
[371710931,1752397848068,-177.931191,0.00021918,2]
[371710932,1752397848079,-159.6475778,0.00021918,2]
[371710933,1752397848091,-177.931191,0.00021918,2]
[371710934,1752397848103,-576.5770022,0.00021918,2]
[371710935,1752397848114,-159.6475778,0.00021918,2]
[371710936,1752397848126,-576.5770021,0.00021918,2]
[371710937,1752397848138,-177.931191,0.00021918,2]
[371710938,1752397848150,-159.6475778,0.00021918,2]
[371710939,1752397848161,-153.0,0.00021918,2]
[371710940,1752397848173,-159.3223008,0.00021918,2]
[371710941,1752397848185,-576.5770021,0.00021918,2]
[371710942,1752397848197,-177.931191,0.00021918,2]
[371710943,1752397848209,-159.6475778,0.00021918,2]
[371710944,1752397848221,-177.931191,0.00021918,2]
[371710945,1752397848233,-576.5770021,0.00021918,2]
[371710946,1752397848245,-159.6475778,0.00021918,2]
[371710947,1752397848256,-177.931191,0.00021918,2]
[371710948,1752397848268,-177.5537433,0.00021918,2]
[371710949,1752397848280,-321.1315909,0.00021918,2]
[371710950,1752397848292,-355.527084,0.00021918,2]
[371710951,1752397848303,-318.9845552,0.00021918,2]
[371710952,1752397848315,-576.5770021,0.00021918,2]
[371710953,1752397848328,-576.5770021,0.00021918,2]
[371710954,1752397848340,-576.5770021,0.00021918,2]
[371710955,1752397848350,-533.5782233,0.00021918,2]
[371710956,1752397848360,-511.65076796,0.00021945,2]
[371710957,1752397848369,-1000.0,0.00022,2]
[371710958,1752397848379,-800.0,0.00022009,2]
[371710959,1752397848388,-458.200386,0.00022016,4]
[371710960,1752397848565,-192.7,0.0002204,5]
[371710961,1752397848575,-511.65076796,0.00022055,2]
[371710962,1752397848585,-60702.99157109,0.00022064,2]
[371710963,1752397848689,-10242.67825844,0.00022064,2]
[371710964,1752397848702,-12179.14791412,0.00022064,2]
[371710965,1752397848714,-260.03705514,0.00022064,2]
[371710966,1752397848727,-1222.39634548,0.00022064,2]
[371710967,1752397848740,-1351.37727208,0.00022064,2]
[371710968,1752397848752,-4344.98524651,0.00022064,2]
[371710969,1752397848766,-278.21992796,0.00022064,2]
[371710970,1752397848840,-460.0,0.00016438,2]
[371710971,1752397848850,-460.0,0.00016438,2]
[371710972,1752397848861,-670.61,0.00016438,2]
[371710973,1752397848872,-460.0,0.00016712,2]
[371710974,1752397848882,-670.61,0.00016712,2]
[371710975,1752397848893,-2789.62846286,0.00019352,2]
[371710976,1752397848903,-9994.41415647,0.00022064,2]
[371710977,1752397848914,-151.0,0.000221,8]
[371710978,1752397848924,-223.0315306,0.00022131,2]
[371710979,1752397848935,-511.65076796,0.00022137,2]
[371710980,1752397848945,-286.34,0.00022174,2]
[371710981,1752397848955,-3908.30138619,0.00022176,6]
[371710982,1752397848965,-151.0,0.00022191,7]
[371710983,1752397848975,-482.54,0.00022191,2]
[371710984,1752397848985,-639.71,0.00022191,2]
[371710985,1752397848996,-498.29,0.00022191,2]
[371710986,1752397849007,-1577.35,0.00022191,2]
[371710987,1752397849017,-937.82,0.00022191,2]
[371710988,1752397849028,-570.09,0.00022191,2]
[371710989,1752397849038,-751.0,0.00022191,2]
[371710990,1752397849049,-1365.09,0.00022191,2]
[371710991,1752397849059,-1020.42,0.00022191,2]
[371710992,1752397849069,-473.41,0.00022191,2]
[371710993,1752397849079,-706.36,0.00022191,2]
[371710994,1752397849090,-942.54,0.00022191,2]
[371710995,1752397849101,-151.0,0.000222,10]
[371710996,1752397849111,-3000.0,0.000222,2]
[371710997,1752397849122,-151.0,0.000222,8]
[371710998,1752397849132,-3000.0,0.0002221,2]
[371710999,1752397849142,-3000.0,0.0002222,2]
[371711000,1752397849152,-3000.0,0.0002223,2]
[371711001,1752397849162,-3000.0,0.0002224,2]
[371711002,1752397849172,-511.65076796,0.00022247,2]
[371711003,1752397849182,-3000.0,0.0002225,2]
[371711004,1752397849192,-3000.0,0.0002226,2]
[371711005,1752397849202,-449.64210343,0.0002227,2]
[371711006,1752397849212,-3000.0,0.0002227,2]
[371711007,1752397849222,-3155.79111,0.0002228,2]
[371711008,1752397849233,-160.0,0.00022281,9]
[371711009,1752397849243,-800.0,0.00022284,2]
[371711010,1752397849253,-800.0,0.00022313,2]
[371711011,1752397849264,-800.0,0.00022337,2]
[371711012,1752397849274,-511.65076796,0.00022356,2]
[371711013,1752397849284,-1153.9,0.000224,7]
[371711014,1752397849294,-482.54,0.00022465,2]
[371711015,1752397849304,-639.71,0.00022465,2]
[371711016,1752397849313,-498.29,0.00022465,2]
[371711017,1752397849323,-1577.35,0.00022465,2]
[371711018,1752397849333,-937.82,0.00022465,2]
[371711019,1752397849343,-570.09,0.00022465,2]
[371711020,1752397849354,-751.0,0.00022465,2]
[371711021,1752397849364,-1365.09,0.00022465,2]
[371711022,1752397849374,-1020.42,0.00022465,2]
[371711023,1752397849384,-473.41,0.00022465,2]
[371711024,1752397849394,-706.36,0.00022465,2]
[371711025,1752397849404,-942.54,0.00022465,2]
[371711026,1752397849413,-511.65076796,0.00022466,2]
[371711027,1752397849422,-250.05317699,0.00022466,2]
[371711028,1752397849432,-154.849508,0.00022475,2]
[371711029,1752397849441,-3908.30138619,0.00022486,7]
[371711030,1752397849450,-13110.24564285,0.0002249,7]
[371711031,1752397849459,-16158.09372869,0.000225,5]
[371711032,1752397849471,-1338.7551734,0.000225,5]
[371711033,1752397849487,-390.34656881,0.000225,5]
[371711034,1752397849865,-670.61,0.00016986,2]
[371711035,1752397849875,-670.61,0.0001726,2]
[371711036,1752397849884,-670.61,0.00017534,2]
[371711037,1752397849894,-670.61,0.00017808,2]
[371711038,1752397849903,-500.0,0.00018082,2]
[371711039,1752397849913,-670.61,0.00018082,2]
[371711040,1752397849922,-670.61,0.00018356,2]
[371711041,1752397849931,-670.61,0.0001863,2]
[371711042,1752397849940,-670.61,0.00018904,2]
[371711043,1752397849950,-670.61,0.00019178,2]
[371711044,1752397849959,-670.61,0.00019452,2]
[371711045,1752397849969,-836.956561,0.0002046,2]
[371711046,1752397849979,-2789.62846286,0.00020859,2]
[371711047,1752397849988,-2789.62846286,0.00022366,2]
[371711048,1752397849998,-659.1281735,0.000225,5]
[371711049,1752397850008,-1977.4,0.000225,2]
[371711050,1752397850017,-23254.69717258,0.000225,2]
[371711051,1752397850028,-24639.08,0.000225,2]
[371711052,1752397850037,-12598.31844336,0.000225,7]
[371711053,1752397850046,-836.956561,0.000225,7]
[371711054,1752397850056,-214.29528141,0.000225,7]
[371711055,1752397850065,-192.7,0.00022517,5]
[371711056,1752397850075,-805.45307868,0.00022552,2]
[371711057,1752397850084,-511.65076796,0.00022575,2]
[371711058,1752397850094,-203.0,0.000226,2]
[371711059,1752397850103,-258.775398,0.00022603,2]
[371711060,1752397850112,-400.0,0.00022603,2]
[371711061,1752397850122,-196.87336587,0.00022605,2]
[371711062,1752397850132,-200.0,0.0002261,6]
[371711063,1752397850141,-800.0,0.00022625,2]
[371711064,1752397850150,-1793.72,0.00022654,3]
[371711065,1752397850160,-151.0,0.00022654,7]
[371711066,1752397850169,-511.65076796,0.00022685,2]
[371711067,1752397850179,-1300.0,0.00022708,2]
[371711068,1752397850188,-160.0,0.00022733,10]
[371711069,1752397850198,-161.0507972,0.00022733,5]
[371711070,1752397850207,-151.0,0.00022737,7]
[371711071,1752397850217,-482.77601679,0.00022739,2]
[371711072,1752397850226,-498.45225359,0.00022739,2]
[371711073,1752397850235,-1577.48765642,0.00022739,2]
[371711074,1752397850245,-937.99738694,0.00022739,2]
[371711075,1752397850255,-570.15153792,0.00022739,2]
[371711076,1752397850265,-751.11,0.00022739,2]
[371711077,1752397850275,-1365.21552056,0.00022739,2]
[371711078,1752397850285,-1020.6095749,0.00022739,2]
[371711079,1752397850295,-473.49982193,0.00022739,2]
[371711080,1752397850304,-706.46856126,0.00022739,2]
[371711081,1752397850314,-942.73728381,0.00022739,2]
[371711082,1752397850324,-1793.72,0.00022754,2]
[371711083,1752397850333,-511.65076796,0.00022767,2]
[371711084,1752397850343,-3908.30138619,0.00022797,7]
[371711085,1752397850352,-1000.0,0.000228,5]
[371711086,1752397850362,-225.710382,0.000228,7]
[371711087,1752397850371,-654.036,0.00022825,2]
[371711088,1752397850380,-2200.0,0.00022825,2]
[371711089,1752397850390,-307.5680692,0.00022849,2]
[371711090,1752397850399,-203.0,0.0002293,2]
[371711091,1752397850409,-803.08322815,0.00022938,2]
[371711092,1752397850419,-303.42773306,0.00022954,2]
[371711093,1752397850428,-500.84953669,0.00022986,8]
[371711094,1752397850437,-500.0,0.00022986,8]
[371711095,1752397850447,-428.60372731,0.00022993,3]
[371711096,1752397850456,-201.57879283,0.00022993,3]
[371711097,1752397850466,-172.0,0.00022993,3]
[371711098,1752397850476,-172.0,0.00022993,3]
[371711099,1752397850487,-567.77128065,0.00022993,3]
[371711100,1752397850497,-152.0,0.00022993,3]
[371711101,1752397850506,-172.0,0.00022993,3]
[371711102,1752397850515,-172.0,0.00022993,3]
[371711103,1752397850525,-152.0,0.00022993,3]
[371711104,1752397850534,-172.0,0.00022993,3]
[371711105,1752397850543,-152.0,0.00022993,3]
[371711106,1752397850554,-173.05595829,0.00022993,3]
[371711107,1752397850564,-152.0,0.00022993,3]
[371711108,1752397850573,-152.0,0.00022993,3]
[371711109,1752397850583,-153.56257966,0.00022993,3]
[371711110,1752397850592,-152.0,0.00022993,3]
[371711111,1752397850601,-152.0,0.00022993,3]
[371711112,1752397850610,-152.0,0.00022993,3]
[371711113,1752397850620,-152.0,0.00022993,3]
[371711114,1752397850629,-154.0,0.00022993,3]
[371711115,1752397850638,-154.0,0.00022993,3]
[371711116,1752397850647,-152.0,0.00022993,3]
[371711117,1752397850657,-154.0,0.00022993,3]
[371711118,1752397850666,-152.0,0.00022993,3]
[371711119,1752397850676,-210.73240784,0.00022993,3]
[371711120,1752397850686,-152.0,0.00022993,3]
[371711121,1752397850695,-152.0,0.00022993,3]
[371711122,1752397850704,-152.0,0.00022993,3]
[371711123,1752397850713,-152.0,0.00022993,3]
[371711124,1752397850723,-152.0,0.00022993,3]
[371711125,1752397850732,-152.0,0.00022993,3]
[371711126,1752397850741,-152.0,0.00022993,3]
[371711127,1752397850751,-152.0,0.00022993,3]
[371711128,1752397850761,-152.0,0.00022993,3]
[371711129,1752397850772,-152.0,0.00022993,3]
[371711130,1752397850782,-152.0,0.00022993,3]